[Event "Live Chess"]
[Site "Chess.com"]
[Date "2024.06.01"]
[Round "-"]
[White "blunderabit"]
[Black "Pablo_dmp"]
[Result "0-1"]
[WhiteElo "1774"]
[BlackElo "2011"]
[TimeControl "300"]
[EndTime "14:11:11 PDT"]
[Termination "Pablo_dmp won on time"]

1. e4 {[%clk 0:04:55.8]} 1... d5 {[%clk 0:04:59.9]} 2. exd5 {[%clk 0:04:53.6]}
2... c6 {[%clk 0:04:59.8]} 3. d4 {[%clk 0:04:47.8]} 3... Nf6 {[%clk 0:04:58.4]}
4. Nf3 {[%clk 0:04:42.8]} 4... Bf5 {[%clk 0:04:55.4]} 5. Be2 {[%clk 0:04:34.8]}
5... Nxd5 {[%clk 0:04:48.7]} 6. a3 {[%clk 0:04:30.5]} 6... g6 {[%clk 0:04:46.4]}
7. c4 {[%clk 0:04:27.9]} 7... Nc7 {[%clk 0:04:39.1]} 8. Nc3 {[%clk 0:04:23.1]}
8... Bg7 {[%clk 0:04:32]} 9. O-O {[%clk 0:04:19.2]} 9... O-O {[%clk 0:04:28.3]}
10. h3 {[%clk 0:04:17.1]} 10... Nd7 {[%clk 0:04:21.4]} 11. Be3 {[%clk
0:04:13.7]} 11... Nf6 {[%clk 0:04:16.7]} 12. Ne5 {[%clk 0:04:08.8]} 12... Be6
{[%clk 0:04:12]} 13. Qd2 {[%clk 0:03:50.9]} 13... Nd7 {[%clk 0:04:10.6]} 14. f4
{[%clk 0:03:38.1]} 14... Re8 {[%clk 0:04:06.9]} 15. Rad1 {[%clk 0:03:19]} 15...
a5 {[%clk 0:03:59.9]} 16. g4 {[%clk 0:03:00.8]} 16... Nb6 {[%clk 0:03:45.5]} 17.
b3 {[%clk 0:02:49.4]} 17... Na6 {[%clk 0:03:38.2]} 18. d5 {[%clk 0:02:41.2]}
18... cxd5 {[%clk 0:03:35.5]} 19. cxd5 {[%clk 0:02:37.2]} 19... Bc8 {[%clk
0:03:31.2]} 20. Bb5 {[%clk 0:02:25.7]} 20... Rf8 {[%clk 0:03:28.3]} 21. Kh2
{[%clk 0:02:04.5]} 21... Nd7 {[%clk 0:03:00.2]} 22. Bd4 {[%clk 0:01:53.7]} 22...
Nf6 {[%clk 0:02:57.2]} 23. Bc4 {[%clk 0:01:29]} 23... Nc7 {[%clk 0:02:34.2]} 24.
Qg2 {[%clk 0:01:22.5]} 24... Rb8 {[%clk 0:02:26.3]} 25. Bb6 {[%clk 0:00:55.2]}
25... Qd6 {[%clk 0:02:17.4]} 26. Qf2 {[%clk 0:00:53.4]} 26... Na8 {[%clk
0:02:13.5]} 27. Bc5 {[%clk 0:00:50.3]} 27... Qd8 {[%clk 0:02:11.3]} 28. d6
{[%clk 0:00:46.5]} 28... exd6 {[%clk 0:02:06.3]} 29. Bxd6 {[%clk 0:00:43.8]}
29... Bd7 {[%clk 0:01:57.8]} 30. Bxb8 {[%clk 0:00:35.3]} 30... Qxb8 {[%clk
0:01:49]} 31. Nxd7 {[%clk 0:00:22.1]} 31... Nxd7 {[%clk 0:01:46.8]} 32. Rxd7
{[%clk 0:00:12.2]} 32... Bxc3 {[%clk 0:01:42.3]} 33. Rfd1 {[%clk 0:00:09.9]}
33... Nc7 {[%clk 0:01:25.7]} 34. Bxf7+ {[%clk 0:00:04.7]} 34... Rxf7 {[%clk
0:01:24.1]} 35. Rd8+ {[%clk 0:00:03.5]} 35... Rf8 {[%clk 0:01:23.2]} 36. Rxb8
{[%clk 0:00:01]} 36... Rxb8 {[%clk 0:01:23.1]} 0-1

[Event "Live Chess"]
[Site "Chess.com"]
[Date "2024.06.01"]
[Round "-"]
[White "ProfPoisson"]
[Black "JanMur7"]
[Result "0-1"]
[WhiteElo "1284"]
[BlackElo "2308"]
[TimeControl "300"]
[EndTime "14:11:41 PDT"]
[Termination "JanMur7 won by resignation"]

1. e4 {[%clk 0:04:55.2]} 1... e5 {[%clk 0:04:59.9]} 2. Nf3 {[%clk 0:04:52.9]}
2... Nc6 {[%clk 0:04:59.5]} 3. d4 {[%clk 0:04:50.6]} 3... exd4 {[%clk
0:04:59.4]} 4. Bc4 {[%clk 0:04:46.8]} 4... Nf6 {[%clk 0:04:57.3]} 5. e5 {[%clk
0:04:44.6]} 5... d5 {[%clk 0:04:56.6]} 6. Bb5 {[%clk 0:04:43.3]} 6... Ne4 {[%clk
0:04:55.1]} 7. Nxd4 {[%clk 0:04:42]} 7... Bd7 {[%clk 0:04:54.4]} 8. Bxc6 {[%clk
0:04:40.3]} 8... bxc6 {[%clk 0:04:53.9]} 9. O-O {[%clk 0:04:38.9]} 9... Bc5
{[%clk 0:04:52.7]} 10. f3 {[%clk 0:04:35.9]} 10... Ng5 {[%clk 0:04:51.2]} 11. f4
{[%clk 0:04:34.7]} 11... Ne4 {[%clk 0:04:50.1]} 12. Be3 {[%clk 0:04:32.5]} 12...
Bb6 {[%clk 0:04:47.9]} 13. Nd2 {[%clk 0:04:29.7]} 13... c5 {[%clk 0:04:42.9]}
14. N4f3 {[%clk 0:04:09.3]} 14... Nxd2 {[%clk 0:04:37.2]} 15. Qxd2 {[%clk
0:04:03.2]} 15... d4 {[%clk 0:04:33.9]} 16. Bf2 {[%clk 0:04:01.7]} 16... Bb5
{[%clk 0:04:31.8]} 17. Rfe1 {[%clk 0:03:56.4]} 17... Qd5 {[%clk 0:04:28.8]} 18.
a4 {[%clk 0:03:53.3]} 18... Bc6 {[%clk 0:04:18.5]} 19. Qe2 {[%clk 0:03:39.5]}
19... a5 {[%clk 0:04:09.1]} 20. e6 {[%clk 0:03:33.8]} 20... fxe6 {[%clk
0:04:06.8]} 21. Qxe6+ {[%clk 0:03:31.2]} 21... Qxe6 {[%clk 0:04:05.8]} 22. Rxe6+
{[%clk 0:03:29.9]} 22... Kd7 {[%clk 0:04:05.7]} 23. Rae1 {[%clk 0:03:20.6]}
23... Rae8 {[%clk 0:03:58.3]} 24. Ne5+ {[%clk 0:03:14.5]} 24... Kxe6 {[%clk
0:03:55.3]} 25. Nxc6+ {[%clk 0:03:13.2]} 25... Kd6 {[%clk 0:03:50.1]} 26. Rxe8
{[%clk 0:02:51.8]} 26... Rxe8 {[%clk 0:03:47.3]} 27. Ne5 {[%clk 0:02:51.7]}
27... Kd5 {[%clk 0:03:43]} 28. Kf1 {[%clk 0:02:45.5]} 28... c6 {[%clk
0:03:39.4]} 29. Ke2 {[%clk 0:02:43.9]} 29... Bc7 {[%clk 0:03:37.1]} 30. c4+
{[%clk 0:02:23.2]} 30... dxc3 {[%clk 0:03:35.1]} 31. bxc3 {[%clk 0:02:21.6]}
31... Bxe5 {[%clk 0:03:35]} 32. fxe5 {[%clk 0:02:17.1]} 32... Rxe5+ {[%clk
0:03:34.9]} 33. Kd3 {[%clk 0:02:14.3]} 33... Rf5 {[%clk 0:03:33.2]} 34. c4+
{[%clk 0:02:11.3]} 34... Ke6 {[%clk 0:03:13.7]} 35. Bxc5 {[%clk 0:02:07.9]}
35... Rxc5 {[%clk 0:03:12.1]} 36. Kd4 {[%clk 0:02:05.1]} 36... Rf5 {[%clk
0:03:11]} 37. g3 {[%clk 0:02:00.9]} 37... c5+ {[%clk 0:03:10.9]} 38. Kd3 {[%clk
0:01:58.6]} 38... Rf1 {[%clk 0:03:09.5]} 39. h4 {[%clk 0:01:52.6]} 39... Ra1
{[%clk 0:03:09.4]} 40. g4 {[%clk 0:01:48.8]} 40... Rxa4 {[%clk 0:03:09.3]} 0-1

[Event "Live Chess"]
[Site "Chess.com"]
[Date "2024.06.01"]
[Round "-"]
[White "bonantagulo"]
[Black "McFim"]
[Result "1-0"]
[WhiteElo "2085"]
[BlackElo "1596"]
[TimeControl "300"]
[EndTime "14:11:54 PDT"]
[Termination "bonantagulo won by resignation"]

1. d4 {[%clk 0:04:51.6]} 1... d5 {[%clk 0:04:58.7]} 2. c4 {[%clk 0:04:49]} 2...
e6 {[%clk 0:04:56.5]} 3. Nf3 {[%clk 0:04:48.2]} 3... Nf6 {[%clk 0:04:55.3]} 4.
Nc3 {[%clk 0:04:47.7]} 4... Be7 {[%clk 0:04:53.9]} 5. Bf4 {[%clk 0:04:47.1]}
5... a6 {[%clk 0:04:52.5]} 6. c5 {[%clk 0:04:42.3]} 6... b6 {[%clk 0:04:49.8]}
7. b4 {[%clk 0:04:41]} 7... O-O {[%clk 0:04:43.9]} 8. e3 {[%clk 0:04:39.8]} 8...
a5 {[%clk 0:04:39.8]} 9. a3 {[%clk 0:04:37.9]} 9... axb4 {[%clk 0:04:37]} 10.
axb4 {[%clk 0:04:37.8]} 10... Rxa1 {[%clk 0:04:35.5]} 11. Qxa1 {[%clk
0:04:37.7]} 11... bxc5 {[%clk 0:04:34.9]} 12. bxc5 {[%clk 0:04:37.6]} 12... Nh5
{[%clk 0:04:28.2]} 13. Bd3 {[%clk 0:04:34.6]} 13... Nxf4 {[%clk 0:04:25.9]} 14.
exf4 {[%clk 0:04:34.5]} 14... g6 {[%clk 0:04:23.3]} 15. O-O {[%clk 0:04:32.8]}
15... Nd7 {[%clk 0:04:15.8]} 16. Ne5 {[%clk 0:04:21.7]} 16... Nxe5 {[%clk
0:04:10.5]} 17. fxe5 {[%clk 0:04:21.6]} 17... f6 {[%clk 0:04:05.9]} 18. f4
{[%clk 0:04:18.9]} 18... fxe5 {[%clk 0:04:02.2]} 19. fxe5 {[%clk 0:04:18.8]}
19... Rxf1+ {[%clk 0:03:59.7]} 20. Qxf1 {[%clk 0:04:18.7]} 20... Qf8 {[%clk
0:03:57.1]} 21. Nb5 {[%clk 0:04:04.7]} 21... c6 {[%clk 0:03:44.2]} 22. Nd6
{[%clk 0:03:48.2]} 22... Qxf1+ {[%clk 0:03:40.8]} 23. Kxf1 {[%clk 0:03:45.9]}
23... Bxd6 {[%clk 0:03:40]} 24. cxd6 {[%clk 0:03:43.2]} 24... Kf7 {[%clk
0:03:38.4]} 25. Ke2 {[%clk 0:03:33.9]} 25... Ke8 {[%clk 0:03:36.8]} 26. Ke3
{[%clk 0:03:22.7]} 26... Bd7 {[%clk 0:03:35.5]} 27. Ba6 {[%clk 0:03:11.1]} 27...
Kd8 {[%clk 0:03:31.8]} 28. h4 {[%clk 0:03:05.1]} 28... h6 {[%clk 0:03:26.1]} 29.
Kf4 {[%clk 0:02:57.5]} 29... Be8 {[%clk 0:03:22.8]} 30. g4 {[%clk 0:02:51.8]}
30... Kd7 {[%clk 0:03:20.9]} 31. g5 {[%clk 0:02:41.8]} 31... h5 {[%clk 0:03:19]}
32. Ke3 {[%clk 0:02:40]} 32... Kd8 {[%clk 0:03:08.8]} 33. Kd3 {[%clk 0:02:39.1]}
33... Kd7 {[%clk 0:03:06.7]} 34. Kc3 {[%clk 0:02:38.5]} 34... Kd8 {[%clk
0:03:05]} 35. Kb4 {[%clk 0:02:37.9]} 35... Bd7 {[%clk 0:03:04.1]} 36. Kc5 {[%clk
0:02:36.8]} 36... Ke8 {[%clk 0:03:02.1]} 37. Bd3 {[%clk 0:02:33.4]} 37... Kf7
{[%clk 0:03:00.1]} 38. Kb6 {[%clk 0:02:32.8]} 38... Be8 {[%clk 0:02:57.5]} 39.
Kc7 {[%clk 0:02:31]} 1-0

[Event "Live Chess"]
[Site "Chess.com"]
[Date "2024.06.01"]
[Round "-"]
[White "StoreySniper"]
[Black "CarmelJane"]
[Result "1-0"]
[WhiteElo "2536"]
[BlackElo "2093"]
[TimeControl "300"]
[EndTime "14:12:07 PDT"]
[Termination "StoreySniper won by resignation"]

1. e4 {[%clk 0:04:57.5]} 1... c5 {[%clk 0:04:56.8]} 2. Nf3 {[%clk 0:04:56.3]}
2... e6 {[%clk 0:04:55.6]} 3. d3 {[%clk 0:04:54.6]} 3... Nc6 {[%clk 0:04:45.2]}
4. Nbd2 {[%clk 0:04:53.7]} 4... h5 {[%clk 0:04:42.3]} 5. g3 {[%clk 0:04:52]}
5... Be7 {[%clk 0:04:39.4]} 6. Bg2 {[%clk 0:04:50.6]} 6... h4 {[%clk 0:04:38.6]}
7. Qe2 {[%clk 0:04:44.4]} 7... hxg3 {[%clk 0:04:37.5]} 8. fxg3 {[%clk
0:04:41.2]} 8... Nf6 {[%clk 0:04:30.8]} 9. O-O {[%clk 0:04:37.5]} 9... d5 {[%clk
0:04:08.2]} 10. e5 {[%clk 0:04:33.3]} 10... Ng4 {[%clk 0:03:54.4]} 11. h3 {[%clk
0:04:29.1]} 11... Nh6 {[%clk 0:03:53.4]} 12. g4 {[%clk 0:04:26.9]} 12... b6
{[%clk 0:03:33.1]} 13. c4 {[%clk 0:04:21.8]} 13... Ba6 {[%clk 0:03:25.3]} 14.
cxd5 {[%clk 0:04:16.4]} 14... exd5 {[%clk 0:03:25.2]} 15. a3 {[%clk 0:04:08.3]}
15... Qc7 {[%clk 0:03:12.9]} 16. b4 {[%clk 0:04:05.1]} 16... cxb4 {[%clk
0:02:58.4]} 17. axb4 {[%clk 0:04:04.1]} 17... Nxb4 {[%clk 0:02:57.7]} 18. Rxa6
{[%clk 0:04:02.8]} 18... Nxa6 {[%clk 0:02:55]} 19. Nb3 {[%clk 0:03:55.4]} 19...
Nc5 {[%clk 0:02:44.3]} 20. Nbd4 {[%clk 0:03:46.6]} 20... O-O-O {[%clk
0:02:35.3]} 21. Nb5 {[%clk 0:03:40.5]} 21... Qd7 {[%clk 0:02:32.4]} 22. d4
{[%clk 0:03:34.8]} 22... a6 {[%clk 0:02:27.7]} 23. dxc5 {[%clk 0:03:26.2]} 23...
Bxc5+ {[%clk 0:02:24.9]} 24. Nbd4 {[%clk 0:03:23.8]} 24... Nxg4 {[%clk
0:02:14.3]} 25. Qxa6+ {[%clk 0:03:06]} 25... Kb8 {[%clk 0:02:13.1]} 26. Bf4
{[%clk 0:03:02.2]} 26... Qb7 {[%clk 0:01:00]} 27. Qxb7+ {[%clk 0:02:53.9]} 27...
Kxb7 {[%clk 0:00:58.6]} 28. hxg4 {[%clk 0:02:53.2]} 28... f6 {[%clk 0:00:49.4]}
29. e6 {[%clk 0:02:44.4]} 29... Rhe8 {[%clk 0:00:47.7]} 30. Kh2 {[%clk 0:02:40]}
30... Rh8+ {[%clk 0:00:45.8]} 31. Kg3 {[%clk 0:02:38.1]} 31... g5 {[%clk
0:00:44.9]} 32. Be3 {[%clk 0:02:27.7]} 32... Bd6+ {[%clk 0:00:43.8]} 33. Kf2
{[%clk 0:02:26.8]} 33... Be5 {[%clk 0:00:43.3]} 34. Nxe5 {[%clk 0:02:14.8]}
34... fxe5 {[%clk 0:00:43.2]} 35. Nf5 {[%clk 0:02:10.5]} 35... e4 {[%clk
0:00:32.7]} 36. e7 {[%clk 0:02:07]} 1-0

[Event "Live Chess"]
[Site "Chess.com"]
[Date "2024.06.01"]
[Round "-"]
[White "kylet1990"]
[Black "ogpin"]
[Result "0-1"]
[WhiteElo "734"]
[BlackElo "2209"]
[TimeControl "300"]
[EndTime "14:12:24 PDT"]
[Termination "ogpin won by checkmate"]

1. e4 {[%clk 0:04:59.6]} 1... a5 {[%clk 0:04:51.5]} 2. d4 {[%clk 0:04:57.1]}
2... Ra6 {[%clk 0:04:51.4]} 3. Bxa6 {[%clk 0:04:54.7]} 3... Nxa6 {[%clk
0:04:49.5]} 4. Nc3 {[%clk 0:04:52.9]} 4... b6 {[%clk 0:04:49.4]} 5. Nf3 {[%clk
0:04:51]} 5... Bb7 {[%clk 0:04:49.3]} 6. Bf4 {[%clk 0:04:48.2]} 6... g6 {[%clk
0:04:48.5]} 7. O-O {[%clk 0:04:45]} 7... Bg7 {[%clk 0:04:47.9]} 8. h3 {[%clk
0:04:41.8]} 8... e6 {[%clk 0:04:45.6]} 9. Ne5 {[%clk 0:04:35.8]} 9... d6 {[%clk
0:04:42.7]} 10. Ng4 {[%clk 0:04:31.1]} 10... Qa8 {[%clk 0:04:34.8]} 11. Nb5
{[%clk 0:04:27.3]} 11... Bxe4 {[%clk 0:04:29.9]} 12. Qe2 {[%clk 0:04:18.3]}
12... Bxg2 {[%clk 0:04:25.1]} 13. Kh2 {[%clk 0:04:11.4]} 13... Bxf1 {[%clk
0:04:20.2]} 14. Qxf1 {[%clk 0:04:10.3]} 14... Nf6 {[%clk 0:04:19.3]} 15. Nxf6+
{[%clk 0:04:03.4]} 15... Bxf6 {[%clk 0:04:19.2]} 16. Qc4 {[%clk 0:03:53.7]}
16... O-O {[%clk 0:04:11.9]} 17. Nxc7 {[%clk 0:03:51.1]} 17... Nxc7 {[%clk
0:04:11.1]} 18. Qxc7 {[%clk 0:03:49.7]} 18... Qf3 {[%clk 0:04:10.1]} 19. Bxd6
{[%clk 0:03:42.7]} 19... Qxf2+ {[%clk 0:04:08.1]} 20. Kh1 {[%clk 0:03:39]} 20...
Qf3+ {[%clk 0:04:06.4]} 21. Kh2 {[%clk 0:03:36.9]} 21... Rd8 {[%clk 0:03:54.3]}
22. Be5 {[%clk 0:03:20.3]} 22... Qe2+ {[%clk 0:03:45.5]} 23. Kh1 {[%clk
0:03:16.2]} 23... Qe4+ {[%clk 0:03:37.3]} 24. Kh2 {[%clk 0:03:11.9]} 24... Bxe5+
{[%clk 0:03:35.4]} 25. dxe5 {[%clk 0:03:09.6]} 25... Rd2+ {[%clk 0:03:31.2]} 26.
Kg1 {[%clk 0:03:05.6]} 26... Qg2# {[%clk 0:03:29.8]} 0-1

[Event "Live Chess"]
[Site "Chess.com"]
[Date "2024.06.01"]
[Round "-"]
[White "vincents82"]
[Black "Delacorta"]
[Result "0-1"]
[WhiteElo "2070"]
[BlackElo "1588"]
[TimeControl "300"]
[EndTime "14:12:31 PDT"]
[Termination "Delacorta won by checkmate"]

1. e4 {[%clk 0:04:43.6]} 1... e6 {[%clk 0:04:57.9]} 2. d4 {[%clk 0:04:35.2]}
2... d5 {[%clk 0:04:56.4]} 3. Nd2 {[%clk 0:04:34.2]} 3... dxe4 {[%clk
0:04:53.4]} 4. Nxe4 {[%clk 0:04:32.9]} 4... Bd7 {[%clk 0:04:52.5]} 5. Nf3 {[%clk
0:04:31.8]} 5... Bc6 {[%clk 0:04:51.6]} 6. Bd3 {[%clk 0:04:31.2]} 6... Nd7
{[%clk 0:04:50.3]} 7. O-O {[%clk 0:04:30.4]} 7... Ngf6 {[%clk 0:04:49.1]} 8. Bg5
{[%clk 0:04:29.2]} 8... Be7 {[%clk 0:04:45.5]} 9. Nxf6+ {[%clk 0:04:28.1]} 9...
Nxf6 {[%clk 0:04:43.3]} 10. c3 {[%clk 0:04:26.7]} 10... O-O {[%clk 0:04:40.4]}
11. Ne5 {[%clk 0:04:21.5]} 11... Be8 {[%clk 0:04:38]} 12. Qf3 {[%clk 0:04:15.9]}
12... Nd5 {[%clk 0:04:32.2]} 13. Bxe7 {[%clk 0:04:08.9]} 13... Qxe7 {[%clk
0:04:25.1]} 14. Qh3 {[%clk 0:04:07.1]} 14... g6 {[%clk 0:04:07.9]} 15. g3 {[%clk
0:04:06]} 15... a6 {[%clk 0:04:02]} 16. Be4 {[%clk 0:04:02.5]} 16... Nf6 {[%clk
0:03:56.9]} 17. Bc2 {[%clk 0:03:59]} 17... c5 {[%clk 0:03:48.7]} 18. dxc5 {[%clk
0:03:52.3]} 18... Qxc5 {[%clk 0:03:45.6]} 19. Nd3 {[%clk 0:03:51.3]} 19... Qg5
{[%clk 0:03:33.5]} 20. Qg2 {[%clk 0:03:47.1]} 20... Bb5 {[%clk 0:03:17.9]} 21.
f4 {[%clk 0:03:43.7]} 21... Qd5 {[%clk 0:03:13.1]} 22. Qxd5 {[%clk 0:03:41.9]}
22... Nxd5 {[%clk 0:03:11.7]} 23. Rfd1 {[%clk 0:03:39.3]} 23... Ne3 {[%clk
0:03:09.8]} 24. Rac1 {[%clk 0:03:12.8]} 24... Nxd1 {[%clk 0:03:06.3]} 25. Rxd1
{[%clk 0:03:11.2]} 25... Rad8 {[%clk 0:03:00.4]} 26. Kf2 {[%clk 0:03:10.6]}
26... Rd7 {[%clk 0:02:47.3]} 27. Ke3 {[%clk 0:03:09.8]} 27... Rfd8 {[%clk
0:02:45.1]} 28. a4 {[%clk 0:03:05]} 28... Bxd3 {[%clk 0:02:30.3]} 29. Bxd3
{[%clk 0:03:02.4]} 29... Kf8 {[%clk 0:02:24.8]} 30. a5 {[%clk 0:03:01.2]} 30...
Ke7 {[%clk 0:02:23.4]} 31. b4 {[%clk 0:03:00.3]} 31... Kf6 {[%clk 0:02:05.7]}
32. h4 {[%clk 0:02:57.9]} 32... Ke7 {[%clk 0:02:01.2]} 33. Rd2 {[%clk
0:02:54.8]} 33... Rd6 {[%clk 0:02:00.1]} 34. Rd1 {[%clk 0:02:53.2]} 34... Kd7
{[%clk 0:01:54.8]} 35. Rd2 {[%clk 0:02:38.2]} 35... Kc7 {[%clk 0:01:48]} 36. Ke2
{[%clk 0:02:35]} 36... f6 {[%clk 0:01:44.8]} 37. Ke3 {[%clk 0:02:31.7]} 37... e5
{[%clk 0:01:43.8]} 38. Ke4 {[%clk 0:02:19.7]} 38... exf4 {[%clk 0:01:40.1]} 39.
gxf4 {[%clk 0:02:18.6]} 39... Re8+ {[%clk 0:01:35.2]} 40. Kf3 {[%clk 0:02:17.2]}
40... Re1 {[%clk 0:01:32.6]} 41. Kf2 {[%clk 0:02:06.7]} 41... Rh1 {[%clk
0:01:30.7]} 42. Kg3 {[%clk 0:02:04.1]} 42... Re1 {[%clk 0:01:22.2]} 43. Kf2
{[%clk 0:02:02.7]} 43... Re7 {[%clk 0:01:12.8]} 44. c4 {[%clk 0:01:55.6]} 44...
Kc6 {[%clk 0:01:06.9]} 45. b5+ {[%clk 0:01:54.1]} 45... axb5 {[%clk 0:01:05]}
46. cxb5+ {[%clk 0:01:53.4]} 46... Kc5 {[%clk 0:00:59.1]} 47. a6 {[%clk
0:01:51.3]} 47... bxa6 {[%clk 0:00:54.1]} 48. bxa6 {[%clk 0:01:49.9]} 48... Ra7
{[%clk 0:00:49.5]} 49. Rc2+ {[%clk 0:01:44.5]} 49... Kb6 {[%clk 0:00:47.2]} 50.
Rb2+ {[%clk 0:01:42.1]} 50... Kc7 {[%clk 0:00:43.1]} 51. Be2 {[%clk 0:01:38.3]}
51... Rb6 {[%clk 0:00:38.1]} 52. Rc2+ {[%clk 0:01:35.6]} 52... Rc6 {[%clk
0:00:36.4]} 53. Rb2 {[%clk 0:01:32.4]} 53... Raxa6 {[%clk 0:00:32.3]} 54. Bxa6
{[%clk 0:01:30.7]} 54... Rxa6 {[%clk 0:00:32.2]} 55. Re2 {[%clk 0:01:28.7]}
55... Kd7 {[%clk 0:00:28.5]} 56. Rb2 {[%clk 0:01:27.8]} 56... Rd6 {[%clk
0:00:26.2]} 57. Rb7+ {[%clk 0:01:24.4]} 57... Ke6 {[%clk 0:00:24.9]} 58. Rb6
{[%clk 0:01:21.5]} 58... Rxb6 {[%clk 0:00:23.1]} 59. Ke3 {[%clk 0:01:19.6]}
59... Kf5 {[%clk 0:00:22.2]} 60. Kf3 {[%clk 0:01:18.6]} 60... g5 {[%clk
0:00:21.3]} 61. hxg5 {[%clk 0:01:17.7]} 61... fxg5 {[%clk 0:00:20.3]} 62. fxg5
{[%clk 0:01:16.5]} 62... Kxg5 {[%clk 0:00:19.3]} 63. Kg3 {[%clk 0:01:16.3]}
63... Rb4 {[%clk 0:00:18.1]} 64. Kh3 {[%clk 0:01:16.1]} 64... Rb3+ {[%clk
0:00:16.7]} 65. Kg2 {[%clk 0:01:15.2]} 65... Kg4 {[%clk 0:00:16]} 66. Kf2 {[%clk
0:01:14.3]} 66... h5 {[%clk 0:00:14.7]} 67. Kg2 {[%clk 0:01:13.1]} 67... h4
{[%clk 0:00:13.2]} 68. Kh2 {[%clk 0:01:12]} 68... Rb2+ {[%clk 0:00:11.8]} 69.
Kg1 {[%clk 0:01:11.3]} 69... Kg3 {[%clk 0:00:10]} 70. Kf1 {[%clk 0:01:10.9]}
70... Rg2 {[%clk 0:00:07.5]} 71. Ke1 {[%clk 0:01:09.5]} 71... h3 {[%clk
0:00:06.9]} 72. Kf1 {[%clk 0:01:09.1]} 72... h2 {[%clk 0:00:05.9]} 73. Ke1
{[%clk 0:01:08.3]} 73... h1=Q# {[%clk 0:00:04.9]} 0-1

[Event "Live Chess"]
[Site "Chess.com"]
[Date "2024.06.01"]
[Round "-"]
[White "koekoekoe"]
[Black "upoe610"]
[Result "0-1"]
[WhiteElo "2018"]
[BlackElo "2248"]
[TimeControl "300"]
[EndTime "14:12:33 PDT"]
[Termination "upoe610 won by checkmate"]

1. d4 {[%clk 0:04:59.9]} 1... Nf6 {[%clk 0:04:55.8]} 2. Bf4 {[%clk 0:04:59.5]}
2... c5 {[%clk 0:04:54.7]} 3. e3 {[%clk 0:04:59.1]} 3... Qb6 {[%clk 0:04:53.5]}
4. b3 {[%clk 0:04:55.1]} 4... g6 {[%clk 0:04:50.9]} 5. c3 {[%clk 0:04:53.2]}
5... d6 {[%clk 0:04:50]} 6. Nd2 {[%clk 0:04:52.6]} 6... Bg7 {[%clk 0:04:49.1]}
7. Ngf3 {[%clk 0:04:52.1]} 7... Nd5 {[%clk 0:04:47.8]} 8. Qc2 {[%clk 0:04:44.5]}
8... Nxf4 {[%clk 0:04:46.2]} 9. exf4 {[%clk 0:04:44.4]} 9... cxd4 {[%clk
0:04:44.6]} 10. cxd4 {[%clk 0:04:35.4]} 10... Nc6 {[%clk 0:04:43.4]} 11. Rd1
{[%clk 0:04:21.7]} 11... Bf5 {[%clk 0:04:41.4]} 12. Bd3 {[%clk 0:04:18.8]} 12...
Nb4 {[%clk 0:04:40.5]} 13. Bxf5 {[%clk 0:04:05.9]} 13... Nxc2+ {[%clk
0:04:38.7]} 14. Bxc2 {[%clk 0:04:05.8]} 14... O-O {[%clk 0:04:32.7]} 15. Nc4
{[%clk 0:04:05]} 15... Qc7 {[%clk 0:04:31.1]} 16. d5 {[%clk 0:04:00.3]} 16... b5
{[%clk 0:04:29.4]} 17. Ne3 {[%clk 0:03:58.3]} 17... Bc3+ {[%clk 0:04:27.7]} 18.
Ke2 {[%clk 0:03:57.3]} 18... b4 {[%clk 0:04:24.5]} 19. Bd3 {[%clk 0:03:47.9]}
19... a5 {[%clk 0:04:22.4]} 20. Bb5 {[%clk 0:03:44.6]} 20... Rfb8 {[%clk
0:04:18.6]} 21. Ba4 {[%clk 0:03:42.3]} 21... Qb6 {[%clk 0:04:15.2]} 22. Nc4
{[%clk 0:03:33.6]} 22... Qc5 {[%clk 0:04:13.8]} 23. Ng5 {[%clk 0:03:25]} 23...
Qc8 {[%clk 0:04:03.8]} 24. Ne4 {[%clk 0:03:17.3]} 24... Qg4+ {[%clk 0:03:58.4]}
25. f3 {[%clk 0:03:14.8]} 25... Qxg2+ {[%clk 0:03:56.2]} 26. Ke3 {[%clk
0:03:14.1]} 26... Qxa2 {[%clk 0:03:51.6]} 27. Nxc3 {[%clk 0:03:10.1]} 27... bxc3
{[%clk 0:03:50.3]} 28. Rc1 {[%clk 0:03:09]} 28... Rxb3 {[%clk 0:03:44.8]} 29.
Bxb3 {[%clk 0:03:06.8]} 29... Qxb3 {[%clk 0:03:44.1]} 30. Kd4 {[%clk 0:03:03.1]}
30... Rc8 {[%clk 0:03:40.6]} 31. Rxc3 {[%clk 0:03:01.6]} 31... Qb4 {[%clk
0:03:36.2]} 32. Rhc1 {[%clk 0:02:58.9]} 32... Rxc4+ {[%clk 0:03:34.4]} 33. Rxc4
{[%clk 0:02:58]} 33... Qd2+ {[%clk 0:03:34.3]} 34. Ke4 {[%clk 0:02:56.4]} 34...
f5# {[%clk 0:03:33.8]} 0-1